fUST/lending_fUST_20250717
["ID","MTS","AMOUNT","RATE_DAILY","PERIOD"]
[372799830,1752766251157,-2624.14,0.00019529,2]
[372799832,1752766251167,-460.0,0.0001953,2]
[372799833,1752766251177,-744.98,0.0001953,2]
[372799835,1752766251187,-460.0,0.0001953,2]
[372799837,1752766251198,-460.0,0.00019531,2]
[372799839,1752766251208,-460.0,0.00019531,2]
[372799841,1752766251218,-919.35,0.00019531,2]
[372799843,1752766251228,-1621.65,0.00019531,2]
[372799846,1752766251237,-754.18,0.00019531,2]
[372799847,1752766251247,-1545.67,0.00019531,2]
[372799849,1752766251264,-460.0,0.00019531,2]
[372799851,1752766251274,-1115.36,0.00019531,2]
[372799853,1752766251284,-863.42,0.00019531,2]
[372799855,1752766251293,-460.0,0.00019532,2]
[372799858,1752766251303,-460.0,0.00019532,2]
[372799859,1752766251312,-460.0,0.00019532,2]
[372799861,1752766251322,-460.0,0.00019532,2]
[372799863,1752766251332,-460.0,0.00019532,2]
[372799865,1752766251341,-2745.02,0.00019532,2]
[372799867,1752766251351,-799.63,0.00019532,2]
[372799869,1752766251361,-364.72,0.00019532,2]
[372799871,1752766251371,-9278.88606982,0.00019545,2]
[372799873,1752766251382,-2047.69341318,0.00019576,2]
[372799875,1752766251391,-8466.63463186,0.00019693,2]
[372799877,1752766251401,-587.0,0.00019719,2]
[372799879,1752766251411,-246.671648,0.00019728,2]
[372799881,1752766251421,-184.0,0.00019798,3]
[372799883,1752766251432,-2983.85,0.00019802,2]
[372799885,1752766251442,-1828.93,0.00019802,2]
[372799887,1752766251451,-460.0,0.00019802,2]
[372799889,1752766251461,-460.0,0.00019802,2]
[372799891,1752766251471,-1258.98,0.00019802,2]
[372799893,1752766251481,-1463.03,0.00019802,2]
[372799895,1752766251492,-961.76,0.00019802,2]
[372799897,1752766251504,-460.0,0.00019802,2]
[372799899,1752766251514,-460.0,0.00019803,2]
[372799901,1752766251524,-460.0,0.00019803,2]
[372799903,1752766251534,-460.0,0.00019803,2]
[372799905,1752766251543,-460.0,0.00019803,2]
[372799907,1752766251552,-460.0,0.00019803,2]
[372799909,1752766251561,-718.56,0.00019803,2]
[372799911,1752766251571,-460.0,0.00019803,2]
[372799913,1752766251580,-460.0,0.00019803,2]
[372799915,1752766251589,-460.0,0.00019803,2]
[372799916,1752766251599,-2624.14,0.00019803,2]
[372799918,1752766251608,-460.0,0.00019804,2]
[372799920,1752766251618,-744.98,0.00019804,2]
[372799922,1752766251627,-246.78,0.00019804,2]
[372799925,1752766251637,-460.0,0.00019805,2]
[372799927,1752766251646,-460.0,0.00019805,2]
[372799929,1752766251655,-919.35,0.00019805,2]
[372799931,1752766251666,-1621.65,0.00019805,2]
[372799933,1752766251675,-754.18,0.00019805,2]
[372799935,1752766251685,-1545.67,0.00019805,2]
[372799937,1752766251695,-460.0,0.00019805,2]
[372799939,1752766251705,-1115.36,0.00019805,2]
[372799940,1752766251714,-863.42,0.00019805,2]
[372799942,1752766251724,-460.0,0.00019806,2]
[372799945,1752766251733,-460.0,0.00019806,2]
[372799946,1752766251742,-460.0,0.00019806,2]
[372799948,1752766251752,-460.0,0.00019806,2]
[372799950,1752766251761,-460.0,0.00019806,2]
[372799952,1752766251773,-2745.02,0.00019806,2]
[372799954,1752766251782,-799.63,0.00019806,2]
[372799956,1752766251791,-151.0,0.00019809,2]
[372799958,1752766251800,-500.0,0.00019825,2]
[372799960,1752766251811,-500.0,0.00019825,2]
[372799962,1752766251820,-500.0,0.00019825,2]
[372799964,1752766251830,-500.0,0.00019825,2]
[372799966,1752766251840,-500.0,0.00019825,2]
[372799968,1752766251850,-500.0,0.00019825,2]
[372799970,1752766251859,-500.0,0.00019825,2]
[372799972,1752766251869,-500.0,0.00019825,2]
[372799974,1752766251880,-501.74678868,0.00019825,2]
[372799976,1752766251890,-800.0,0.00019865,2]
[372799978,1752766251899,-501.89293347,0.00019908,2]
[372799980,1752766251910,-500.0,0.00019908,2]
[372799982,1752766251920,-500.0,0.00019908,2]
[372799984,1752766251929,-500.0,0.00019908,2]
[372799986,1752766251938,-500.0,0.00019908,2]
[372799988,1752766251948,-1000.0,0.0001998,2]
[372799990,1752766251958,-560.0,0.00019984,2]
[372799992,1752766251968,-300.0,0.0002,2]
[372799994,1752766251977,-8466.63463186,0.00020003,2]
[372799996,1752766251987,-151.0,0.00020022,2]
[372799998,1752766251996,-151.0,0.00020022,2]
[372800000,1752766252017,-151.0,0.00020022,2]
[372800002,1752766252027,-151.0,0.00020022,2]
[372800004,1752766252036,-151.0,0.00020022,2]
[372800006,1752766252046,-207.4,0.00020022,2]
[372800008,1752766252056,-3801.642,0.00020022,2]
[372800010,1752766252066,-152.694333,0.00020022,2]
[372800012,1752766252075,-151.0,0.00020022,2]
[372800014,1752766252084,-151.0,0.00020022,2]
[372800016,1752766252094,-151.0,0.00020022,2]
[372800018,1752766252104,-151.0,0.00020022,2]
[372800020,1752766252114,-151.0,0.00020022,2]
[372800022,1752766252123,-151.0,0.00020022,2]
[372800024,1752766252133,-151.0,0.00020022,2]
[372800026,1752766252143,-151.0,0.00020022,2]
[372800028,1752766252152,-151.0,0.00020022,2]
[372800030,1752766252162,-151.0,0.00020022,2]
[372800032,1752766252173,-151.0,0.00020022,2]
[372800034,1752766252183,-151.0,0.00020022,2]
[372800036,1752766252192,-151.0,0.00020022,2]
[372800038,1752766252202,-151.0,0.00020022,2]
[372800040,1752766252211,-151.0,0.00020022,2]
[372800042,1752766252220,-151.0,0.00020022,2]
[372800044,1752766252230,-151.0,0.00020022,2]
[372800045,1752766252239,-151.0,0.00020022,2]
[372800048,1752766252249,-151.0,0.00020022,2]
[372800050,1752766252267,-151.0,0.00020022,2]
[372800052,1752766252277,-151.0,0.00020022,2]
[372800054,1752766252286,-151.0,0.00020022,2]
[372800056,1752766252296,-151.0,0.00020022,2]
[372800058,1752766252306,-151.0,0.00020022,2]
[372800060,1752766252315,-151.0,0.00020022,2]
[372800062,1752766252337,-151.0,0.00020022,2]
[372800064,1752766252348,-151.0,0.00020022,2]
[372800066,1752766252358,-159.14388846,0.00020022,2]
[372800068,1752766252368,-151.0,0.00020022,2]
[372800070,1752766252378,-151.0,0.00020022,2]
[372800072,1752766252387,-151.0,0.00020022,2]
[372800073,1752766252396,-151.0,0.00020022,2]
[372800075,1752766252406,-25000.0,0.00020022,2]
[372800078,1752766252416,-23804.98061537,0.00020022,2]
[372800080,1752766252426,-2983.85,0.00020076,2]
[372800082,1752766252436,-1828.93,0.00020076,2]
[372800084,1752766252446,-460.0,0.00020076,2]
[372800086,1752766252455,-180.85,0.00020076,2]
[372800088,1752766252464,-1258.98,0.00020076,2]
[372800090,1752766252474,-1463.03,0.00020076,2]
[372800103,1752766252580,-961.76,0.00020076,2]
[372800105,1752766252603,-460.0,0.00020076,2]
[372800107,1752766252613,-460.0,0.00020077,2]
[372800109,1752766252622,-460.0,0.00020077,2]
[372800111,1752766252632,-575.23,0.00020077,2]
[372800113,1752766252641,-378.62710336,0.00020077,2]
[372800115,1752766252651,-460.0,0.00020077,2]
[372800117,1752766252661,-718.56,0.00020077,2]
[372800119,1752766252670,-460.0,0.00020077,2]
[372800121,1752766252680,-460.0,0.00020077,2]
[372800123,1752766252690,-460.0,0.00020077,2]
[372800125,1752766252699,-2624.14,0.00020077,2]
[372800127,1752766252709,-3942.302754,0.00020077,2]
[372800129,1752766252718,-460.0,0.00020078,2]
[372800131,1752766252728,-744.98,0.00020078,2]
[372800133,1752766252738,-460.0,0.00020079,2]
[372800135,1752766252747,-460.0,0.00020079,2]
[372800137,1752766252756,-919.35,0.00020079,2]
[372800139,1752766252766,-1621.65,0.00020079,2]
[372800141,1752766252776,-754.18,0.00020079,2]
[372800143,1752766252785,-1545.67,0.00020079,2]
[372800145,1752766252795,-460.0,0.00020079,2]
[372800147,1752766252804,-1115.36,0.00020079,2]
[372800149,1752766252814,-863.42,0.00020079,2]
[372800151,1752766252823,-460.0,0.0002008,2]
[372800153,1752766252833,-460.0,0.0002008,2]
[372800155,1752766252843,-460.0,0.0002008,2]
[372800157,1752766252852,-460.0,0.0002008,2]
[372800159,1752766252862,-445.09,0.0002008,2]
[372800161,1752766252872,-2745.02,0.0002008,2]
[372800163,1752766252881,-799.63,0.0002008,2]
[372800165,1752766252891,-153.869837,0.00020132,2]
[372800167,1752766252901,-153.869837,0.00020132,2]
[372800169,1752766252910,-4088.1679559,0.00020132,2]
[372800171,1752766252919,-184.0,0.00020187,3]
[372800173,1752766252929,-437.78817027,0.00020187,2]
[372800175,1752766252938,-754.853591,0.00020187,2]
[372800177,1752766252948,-168.0,0.00020214,2]
[372800179,1752766252957,-395.0,0.00020236,2]
[372800181,1752766252966,-8466.63463186,0.00020314,3]
[372800183,1752766252977,-160.0,0.0002032,3]
[372800185,1752766252988,-173.99553991,0.0002032,3]
[372800187,1752766252998,-12607.95677342,0.0002032,3]
[372800189,1752766253008,-214.44804168,0.0002032,3]
[372800191,1752766253020,-168.0,0.00020332,2]
[372800193,1752766253029,-2983.85,0.0002035,2]
[372800195,1752766253039,-1828.93,0.0002035,2]
[372800197,1752766253049,-460.0,0.0002035,2]
[372800199,1752766253059,-1258.98,0.0002035,2]
[372800202,1752766253069,-1463.03,0.0002035,2]
[372800203,1752766253078,-961.76,0.0002035,2]
[372800206,1752766253088,-460.0,0.0002035,2]
[372800207,1752766253098,-284.736529,0.00020351,2]
[372800210,1752766253107,-460.0,0.00020351,2]
[372800212,1752766253116,-460.0,0.00020351,2]
[372800213,1752766253126,-718.56,0.00020351,2]
[372800215,1752766253136,-460.0,0.00020351,2]
[372800217,1752766253145,-460.0,0.00020351,2]
[372800219,1752766253155,-460.0,0.00020351,2]
[372800221,1752766253164,-2624.14,0.00020351,2]
[372800224,1752766253174,-460.0,0.00020352,2]
[372800225,1752766253183,-744.98,0.00020352,2]
[372800227,1752766253193,-460.0,0.00020353,2]
[372800229,1752766253202,-542.21,0.00020353,2]
[372800231,1752766253212,-919.35,0.00020353,2]
[372800233,1752766253221,-1621.65,0.00020353,2]
[372800235,1752766253231,-754.18,0.00020353,2]
[372800237,1752766253240,-1545.67,0.00020353,2]
[372800239,1752766253249,-471.9,0.00020353,2]
[372800242,1752766253263,-1115.36,0.00020353,2]
[372800244,1752766253273,-863.42,0.00020353,2]
[372800246,1752766253282,-460.0,0.00020354,2]
[372800248,1752766253292,-460.0,0.00020354,2]
[372800250,1752766253303,-460.0,0.00020354,2]
[372800252,1752766253312,-460.0,0.00020354,2]
[372800254,1752766253322,-2745.02,0.00020354,2]
[372800256,1752766253334,-799.63,0.00020354,2]
[372800258,1752766253344,-425.07497,0.00020357,2]
[372800260,1752766253354,-425.07497,0.00020357,2]
[372800262,1752766253364,-151.0,0.00020357,2]
[372800264,1752766253374,-419.065679,0.00020357,2]
[372800266,1752766253383,-419.065679,0.00020357,2]
[372800268,1752766253393,-168.0,0.00020358,2]
[372800270,1752766253402,-395.0,0.00020368,2]
[372800272,1752766253413,-500.0,0.00020373,2]
[372800274,1752766253423,-1000.0,0.00020373,2]
[372800276,1752766253436,-1000.0,0.00020373,2]
[372800278,1752766253448,-1000.0,0.00020373,2]
[372800280,1752766253458,-1000.0,0.00020373,2]
[372800281,1752766253468,-501.92052317,0.00020373,2]
[372800283,1752766253478,-607.13911037,0.00020402,2]
[372800285,1752766253487,-1000.0,0.00020456,2]
[372800288,1752766253498,-513.81040375,0.00020456,2]
[372800289,1752766253507,-151.0,0.000205,4]
[372800291,1752766253518,-660.0,0.00020532,2]
[372800293,1752766253527,-229.62,0.00020533,2]
[372800295,1752766253537,-151.0,0.0002057,2]
[372800297,1752766253546,-25000.0,0.0002057,2]
[372800299,1752766253556,-184.0,0.00020577,3]
[372800301,1752766253565,-395.0,0.00020591,2]
[372800303,1752766253575,-395.0,0.00020596,2]
[372800305,1752766253584,-2983.85,0.00020624,2]
[372800307,1752766253594,-1828.93,0.00020624,2]
[372800309,1752766253604,-460.0,0.00020624,2]
[372800311,1752766253614,-1258.98,0.00020624,2]
[372800313,1752766253623,-1463.03,0.00020624,2]
[372800315,1752766253632,-961.76,0.00020624,2]
[372800317,1752766253642,-460.0,0.00020624,2]
[372800319,1752766253651,-8466.63463186,0.00020624,3]
[372800321,1752766253661,-460.0,0.00020625,2]
[372800323,1752766253670,-548.28,0.00020625,2]
[372800325,1752766253679,-718.56,0.00020625,2]
[372800327,1752766253689,-220.56,0.00020625,2]
[372800329,1752766253699,-460.0,0.00020625,2]
[372800331,1752766253708,-460.0,0.00020625,2]
[372800333,1752766253718,-2624.14,0.00020625,2]
[372800335,1752766253728,-460.0,0.00020626,2]
[372800337,1752766253738,-744.98,0.00020626,2]
[372800339,1752766253747,-460.0,0.00020627,2]
[372800341,1752766253757,-919.35,0.00020627,2]
[372800343,1752766253768,-1621.65,0.00020627,2]
[372800345,1752766253778,-754.18,0.00020627,2]
[372800347,1752766253787,-1545.67,0.00020627,2]
[372800349,1752766253796,-1115.36,0.00020627,2]
[372800351,1752766253805,-863.42,0.00020627,2]
[372800353,1752766253815,-509.67,0.00020628,2]
[372800355,1752766253824,-460.0,0.00020628,2]
[372800357,1752766253833,-460.0,0.00020628,2]
[372800359,1752766253842,-460.0,0.00020628,2]
[372800360,1752766253851,-2745.02,0.00020628,2]
[372800362,1752766253860,-799.63,0.00020628,2]
[372800364,1752766253870,-203.148698,0.00020628,2]
[372800366,1752766253879,-203.148698,0.00020628,2]
[372800368,1752766253889,-151.0,0.00020631,2]
[372800370,1752766253899,-783.243,0.00020658,2]
[372800372,1752766253908,-246.671648,0.00020659,3]
[372800374,1752766253918,-395.0,0.00020731,2]
[372800376,1752766253927,-395.0,0.00020822,2]
[372800378,1752766253937,-168.0,0.00020827,2]
[372800380,1752766253946,-800.0,0.00020862,2]
[372800382,1752766253955,-168.0,0.00020881,2]
[372800384,1752766253964,-2983.85,0.00020898,2]
[372800386,1752766253974,-1828.93,0.00020898,2]
[372800388,1752766253984,-460.0,0.00020898,2]
[372800390,1752766253994,-1258.98,0.00020898,2]
[372800392,1752766254003,-1463.03,0.00020898,2]
[372800394,1752766254013,-961.76,0.00020898,2]
[372800396,1752766254022,-463.48,0.00020898,2]
[372800398,1752766254031,-460.0,0.00020899,2]
[372800400,1752766254041,-718.56,0.00020899,2]
[372800402,1752766254050,-460.0,0.00020899,2]
[372800404,1752766254060,-460.0,0.00020899,2]
[372800406,1752766254070,-2624.14,0.00020899,2]
[372800408,1752766254079,-744.98,0.000209,2]
[372800410,1752766254088,-460.0,0.00020901,2]
[372800412,1752766254097,-919.35,0.00020901,2]
[372800414,1752766254107,-1621.65,0.00020901,2]
[372800416,1752766254117,-754.18,0.00020901,2]
[372800418,1752766254127,-1545.67,0.00020901,2]
[372800420,1752766254136,-1115.36,0.00020901,2]
[372800422,1752766254146,-266.15419911,0.00020902,2]
[372800424,1752766254155,-460.0,0.00020902,2]
[372800426,1752766254164,-463.21,0.00020902,2]
[372800428,1752766254174,-460.0,0.00020902,2]
[372800430,1752766254183,-2745.02,0.00020902,2]
[372800432,1752766254192,-799.63,0.00020902,2]
[372800433,1752766254201,-168.0,0.00020916,2]
[372800435,1752766254211,-500.0,0.00020921,2]
[372800437,1752766254220,-1500.0,0.00020921,2]
[372800439,1752766254230,-1399.51193304,0.00020921,2]
[372800441,1752766254239,-1488.74686382,0.00020921,2]
[372800443,1752766254249,-151.0,0.00020934,2]
[372800445,1752766254260,-8466.63463186,0.00020934,4]
[372800447,1752766254274,-800.0,0.00020961,2]
[372800449,1752766254283,-184.0,0.00020967,4]
[372800451,1752766254292,-246.671648,0.00020991,2]
[372800453,1752766254303,-151.0,0.00021,4]
[372800455,1752766254312,-1500.0,0.00021004,2]
[372800457,1752766254322,-2047.69341318,0.00021017,2]
[372800459,1752766254334,-760.0,0.0002108,2]
[372800461,1752766254343,-151.0,0.00021118,2]
[372800463,1752766254353,-25000.0,0.00021118,2]
[372800465,1752766254362,-320.9233043,0.00021125,2]
[372800467,1752766254371,-168.0,0.00021127,2]
[372800469,1752766254380,-246.671648,0.00021141,4]
[372800471,1752766254390,-319.4904069,0.00021158,2]
[372800473,1752766254399,-800.0,0.0002117,2]
[372800475,1752766254408,-2983.85,0.00021172,2]
[372800477,1752766254419,-1828.93,0.00021172,2]
[372800479,1752766254430,-460.0,0.00021172,2]
[372800480,1752766254438,-1258.98,0.00021172,2]
[372800481,1752766254447,-1463.03,0.00021172,2]
[372800482,1752766254457,-961.76,0.00021172,2]
[372800483,1752766254466,-460.0,0.00021173,2]
[372800484,1752766254475,-718.56,0.00021173,2]
[372800485,1752766254484,-460.0,0.00021173,2]
[372800486,1752766254493,-460.0,0.00021173,2]
[372800487,1752766254502,-2624.14,0.00021173,2]
[372800488,1752766254511,-744.98,0.00021174,2]
[372800489,1752766254521,-460.0,0.00021175,2]
[372800490,1752766254530,-919.35,0.00021175,2]
[372800491,1752766254540,-1621.65,0.00021175,2]
[372800492,1752766254550,-754.18,0.00021175,2]
[372800493,1752766254559,-1545.67,0.00021175,2]
[372800494,1752766254568,-1115.36,0.00021175,2]
[372800495,1752766254578,-153.869837,0.00021176,2]
[372800496,1752766254587,-153.869837,0.00021176,2]
[372800497,1752766254595,-410.49587836,0.00021176,2]
[372800498,1752766254605,-151.0,0.00021176,2]
[372800499,1752766254614,-460.0,0.00021176,2]
[372800500,1752766254624,-2745.02,0.00021176,2]
[372800502,1752766254633,-799.63,0.00021176,2]
[372800503,1752766254643,-8466.63463186,0.00021245,4]
[372800504,1752766254652,-395.0,0.00021287,2]
[372800505,1752766254661,-1612.50670095,0.00021348,2]
[372800507,1752766254671,-184.0,0.00021357,4]
[372800509,1752766254681,-215.0738,0.00021391,2]
[372800511,1752766254691,-168.0,0.00021392,2]
[372800513,1752766254700,-2983.85,0.00021446,2]
[372800515,1752766254710,-1828.93,0.00021446,2]
[372800517,1752766254720,-460.0,0.00021446,2]
[372800519,1752766254729,-1258.98,0.00021446,2]
[372800521,1752766254738,-1463.03,0.00021446,2]
[372800523,1752766254747,-961.76,0.00021446,2]
[372800525,1752766254755,-800.0,0.00021447,2]
[372800527,1752766254765,-460.0,0.00021447,2]
[372800529,1752766254776,-718.56,0.00021447,2]
[372800531,1752766254785,-190.73589637,0.00021447,2]
[372800532,1752766254794,-271.91,0.00021447,2]
[372800534,1752766254804,-2624.14,0.00021447,2]
[372800536,1752766254814,-744.98,0.00021448,2]
[372800538,1752766254824,-460.0,0.00021449,2]
[372800540,1752766254833,-919.35,0.00021449,2]
[372800542,1752766254843,-1621.65,0.00021449,2]
[372800544,1752766254852,-754.18,0.00021449,2]
[372800547,1752766254862,-1545.67,0.00021449,2]
[372800548,1752766254872,-1115.36,0.00021449,2]
[372800550,1752766254882,-460.0,0.0002145,2]
[372800552,1752766254891,-2745.02,0.0002145,2]
[372800554,1752766254901,-799.63,0.0002145,2]
[372800556,1752766254910,-570.4268414,0.00021469,2]
[372800559,1752766254920,-3070.91410291,0.00021493,2]
[372800560,1752766254930,-772.95024309,0.000215,2]
[372800562,1752766254940,-1595.7,0.000215,2]
[372800564,1752766254949,-246.671648,0.00021518,3]
[372800577,1752766255063,-823.0,0.00021548,2]
[372800580,1752766255073,-2000.0,0.00021552,2]
[372800582,1752766255083,-8466.63463186,0.00021555,5]
[372800583,1752766255092,-1024.64478404,0.00021564,2]
[372800585,1752766255102,-4094.48055704,0.00021564,2]
[372800588,1752766255112,-1642.13887517,0.00021564,2]
[372800590,1752766255122,-6561.98694519,0.00021564,2]
[372800591,1752766255132,-168.0,0.00021591,2]
[372800593,1752766255141,-168.0,0.00021595,2]
[372800595,1752766255151,-151.0,0.000216,4]
[372800598,1752766255161,-395.0,0.00021614,2]
[372800599,1752766255171,-168.0,0.00021619,2]
[372800601,1752766255180,-860.0,0.00021628,2]
[372800603,1752766255190,-191.35,0.00021666,2]
[372800605,1752766255199,-151.52356667,0.00021666,2]
[372800607,1752766255209,-25000.0,0.00021666,2]
[372800609,1752766255219,-395.0,0.00021682,2]
[372800611,1752766255229,-151.0,0.000217,4]
[372800614,1752766255238,-2983.85,0.0002172,2]
[372800615,1752766255248,-1828.93,0.0002172,2]
[372800617,1752766255261,-460.0,0.0002172,2]
[372800619,1752766255273,-1258.98,0.0002172,2]
[372800621,1752766255282,-1463.03,0.0002172,2]
[372800624,1752766255292,-961.76,0.0002172,2]
[372800626,1752766255303,-216.7,0.00021721,2]
[372800627,1752766255312,-718.56,0.00021721,2]
[372800629,1752766255322,-2624.14,0.00021721,2]
[372800631,1752766255332,-744.98,0.00021722,2]
[372800633,1752766255342,-460.0,0.00021723,2]
[372800635,1752766255351,-919.35,0.00021723,2]
[372800637,1752766255361,-1621.65,0.00021723,2]
[372800639,1752766255371,-754.18,0.00021723,2]
[372800641,1752766255380,-1545.67,0.00021723,2]
[372800643,1752766255390,-1115.36,0.00021723,2]
[372800645,1752766255400,-425.07497,0.00021724,2]
[372800647,1752766255410,-425.07497,0.00021724,2]
[372800649,1752766255420,-151.0,0.00021724,2]
[372800651,1752766255430,-296.13,0.00021724,2]
[372800653,1752766255439,-419.065679,0.00021724,2]
[372800655,1752766255450,-419.065679,0.00021724,2]
[372800658,1752766255459,-2745.02,0.00021724,2]
[372800660,1752766255469,-799.63,0.00021724,2]
[372800661,1752766255478,-607.13911037,0.0002173,2]
[372800664,1752766255488,-567.32925396,0.00021736,5]
[372800665,1752766255498,-184.0,0.00021747,4]
[372800668,1752766255508,-191.35,0.00021751,2]
[372800669,1752766255518,-153.0,0.0002176,2]
[372800672,1752766255528,-153.0,0.0002176,2]
[372800674,1752766255538,-306.7028389,0.0002176,2]
[372800676,1752766255548,-246.671648,0.00021762,5]
[372800677,1752766255557,-168.0,0.00021768,2]
[372800680,1752766255567,-2155.0,0.000218,2]
[372800681,1752766255576,-968.0,0.000218,2]
[372800683,1752766255586,-407.0,0.000218,2]
[372800686,1752766255595,-414.376,0.000218,2]
[372800687,1752766255605,-647.0,0.000218,2]
[372800689,1752766255614,-395.0,0.00021803,2]
[372800691,1752766255624,-250.0,0.00021819,2]
[372800693,1752766255634,-3070.91410291,0.0002186,2]
[372800695,1752766255643,-8466.63463186,0.00021866,6]
[372800698,1752766255652,-395.0,0.00021883,2]
[372800700,1752766255662,-3748.76686233,0.00021897,2]
[372800701,1752766255671,-285.072915,0.00021918,2]
[372800703,1752766255681,-285.072915,0.00021918,2]
[372800705,1752766255691,-3070.91410291,0.00021971,2]
[372800707,1752766255701,-2983.85,0.00021993,2]
[372800709,1752766255710,-1828.93,0.00021993,2]
[372800711,1752766255720,-460.0,0.00021993,2]
[372800713,1752766255729,-1258.98,0.00021993,2]
[372800715,1752766255739,-1463.03,0.00021993,2]
[372800717,1752766255749,-961.76,0.00021993,2]
[372800719,1752766255758,-718.56,0.00021995,2]
[372800721,1752766255769,-2624.14,0.00021995,2]
[372800723,1752766255779,-744.98,0.00021996,2]
[372800725,1752766255787,-460.0,0.00021997,2]
[372800727,1752766255796,-567.01,0.00021997,2]
[372800729,1752766255805,-919.35,0.00021997,2]
[372800731,1752766255814,-1621.65,0.00021997,2]
[372800733,1752766255824,-754.18,0.00021997,2]
[372800735,1752766255833,-1545.67,0.00021997,2]
[372800737,1752766255843,-1115.36,0.00021997,2]
[372800739,1752766255852,-151.0,0.00021998,7]
[372800741,1752766255861,-2745.02,0.00021998,2]
[372800743,1752766255871,-799.63,0.00021998,2]
[372800745,1752766255880,-6791.25,0.00022,7]
[372800747,1752766255890,-246.671648,0.00022,14]
[372800749,1752766255900,-167.0,0.00022,2]
[372800751,1752766255909,-159.7589233,0.00022007,2]
[372800753,1752766255919,-159.7589235,0.00022007,2]
[372800754,1752766255929,-159.7589233,0.00022007,2]
[372800755,1752766255938,-159.7589235,0.00022007,2]
[372800756,1752766255948,-1228.19777,0.0002204,8]
[372800757,1752766255958,-246.671648,0.00022041,4]
[372800758,1752766255968,-800.0,0.00022057,2]
[372800759,1752766255977,-600.0,0.0002209,2]
[372800760,1752766255987,-151.0,0.000221,8]
[372800761,1752766255996,-2500.0,0.000221,2]
[372800762,1752766256005,-184.0,0.00022137,5]
[372800763,1752766256014,-246.671648,0.00022146,14]
[372800764,1752766256025,-8466.63463186,0.00022176,6]
[372800765,1752766256034,-246.671648,0.00022176,6]
[372800766,1752766256043,-960.0,0.00022176,2]
[372800767,1752766256052,-167.0,0.00022192,7]
[372800768,1752766256061,-246.671648,0.00022196,5]
[372800769,1752766256070,-25000.0,0.00022214,2]
[372800770,1752766256079,-395.0,0.00022226,2]
[372800771,1752766256088,-246.671648,0.00022254,2]
[372800772,1752766256098,-395.0,0.00022256,2]
[372800773,1752766256107,-2983.85,0.00022267,2]
[372800774,1752766256116,-1828.93,0.00022267,2]
[372800775,1752766256126,-460.0,0.00022267,2]
[372800776,1752766256135,-1258.98,0.00022267,2]
[372800777,1752766256144,-1463.03,0.00022267,2]
[372800778,1752766256154,-961.76,0.00022267,2]
[372800779,1752766256163,-718.56,0.00022269,2]
[372800780,1752766256173,-2624.14,0.00022269,2]
[372800781,1752766256182,-744.98,0.0002227,2]
[372800782,1752766256191,-460.0,0.00022271,2]
[372800783,1752766256201,-567.01,0.00022271,2]
[372800784,1752766256210,-919.35,0.00022271,2]
[372800785,1752766256219,-1621.65,0.00022271,2]
[372800786,1752766256229,-754.18,0.00022271,2]
[372800787,1752766256238,-1545.67,0.00022271,2]